bitfinex-derivatives/quotes_BTCF0:USTF0_20250811
["timestamp","ask_amount","ask_price","bid_price","bid_amount"]
[1754951777477,0.84344143,118770.0,118760.0,0.02317]
[1754951777868,0.84344143,118770.0,118760.0,0.0001]
[1754951778776,0.98334143,118770.0,118760.0,0.0001]
[1754951778969,1.00199937,118770.0,118760.0,0.0001]
[1754951779270,0.2241002,118760.0,118750.0,0.80855]
[1754951779580,0.98432853,118760.0,118750.0,0.80855]
[1754951780167,0.98432853,118760.0,118750.0,0.8927573]
[1754951780371,0.98442853,118760.0,118750.0,0.86756]
[1754951781264,0.98442853,118760.0,118750.0,0.81927]
[1754951781570,0.98442853,118760.0,118750.0,0.80965]
[1754951782775,0.98442853,118760.0,118750.0,0.80865]
[1754951783082,0.98442853,118760.0,118750.0,0.02317]
[1754951783475,0.98442853,118760.0,118750.0,0.0001]
[1754951783878,0.99064045,118760.0,118750.0,0.0001]
[1754951784079,0.98442853,118760.0,118750.0,0.0001]
[1754951784378,0.6778302,118760.0,118750.0,0.03453]
[1754951784568,0.6778302,118760.0,118750.0,0.2054272]
[1754951785484,0.6778302,118760.0,118750.0,0.12122]
[1754951786785,0.6778302,118760.0,118750.0,0.2054272]
[1754951786984,0.6778302,118760.0,118750.0,0.51202553]
[1754951787277,0.6778302,118760.0,118750.0,0.2054272]
[1754951788893,0.4604802,118760.0,118750.0,0.51202553]
[1754951789200,0.5145202,118760.0,118750.0,0.2054272]
[1754951789394,0.5379302,118760.0,118750.0,0.51202553]
[1754951789691,0.5379302,118760.0,118750.0,0.12122]
[1754951790000,0.84452853,118760.0,118750.0,0.78438]
[1754951790190,0.84452853,118760.0,118750.0,0.02491]
[1754951790791,0.84452853,118760.0,118750.0,0.02591]
[1754951790990,0.84452853,118760.0,118750.0,0.0011]
[1754951791293,2.07586686,118760.0,118750.0,0.0011]
[1754951792094,1.76926853,118760.0,118750.0,0.0011]
[1754951792695,1.93768453,118760.0,118750.0,0.0011]
[1754951793094,1.93768453,118760.0,118730.0,0.85802]
[1754951793095,0.0842143,118740.0,118730.0,0.78492]
[1754951793303,0.84334263,118740.0,118730.0,0.80973]
[1754951793598,1.20414263,118740.0,118730.0,0.02481]
[1754951793999,0.0842214,118730.0,118720.0,0.9418469]
[1754951794296,0.84334973,118730.0,118720.0,0.9898669]
[1754951794497,0.84344973,118730.0,118720.0,0.9899669]
[1754951794697,0.5368514,118730.0,118720.0,0.9899669]
[1754951795298,0.5368514,118730.0,118720.0,0.9909669]
[1754951795699,0.60560543,118730.0,118720.0,0.9909669]
[1754951796303,0.3609,118730.0,118720.0,1.29756523]
[1754951796605,0.4451214,118730.0,118720.0,1.29756523]
[1754951797301,0.4682114,118730.0,118720.0,1.29756523]
[1754951797806,0.4861214,118730.0,118720.0,1.29756523]
[1754951798304,0.4861214,118730.0,118720.0,0.9909669]
[1754951798504,0.4861214,118730.0,118720.0,1.29756523]
[1754951798804,0.1253214,118730.0,118720.0,1.29756523]
[1754951798999,0.4835914,118730.0,118720.0,1.29756523]
[1754951799501,0.01548,118730.0,118720.0,1.29756523]
[1754951799702,0.0843214,118730.0,118720.0,1.29756523]
[1754951800698,0.0001,118730.0,118720.0,1.29756523]
[1754951800901,0.15228057,118730.0,118720.0,1.29756523]
[1754951801998,0.06805917,118730.0,118720.0,1.29756523]
[1754951803004,0.06805917,118730.0,118720.0,0.9909669]
[1754951803199,0.06805917,118730.0,118720.0,0.51304523]
[1754951803405,0.06805917,118730.0,118720.0,0.87384523]
[1754951804302,0.6976468,118750.0,118730.0,0.8684953]
[1754951804602,0.6976468,118750.0,118740.0,0.51193263]
[1754951804997,0.7207368,118750.0,118740.0,0.51193263]
[1754951805205,0.7386468,118750.0,118740.0,0.51193263]
[1754951805498,0.80437832,118750.0,118740.0,0.51193263]
[1754951805706,0.80447832,118750.0,118740.0,0.51203263]
[1754951806105,0.72026462,118750.0,118740.0,0.51203263]
[1754951806304,0.74353462,118750.0,118740.0,0.51203263]
[1754951807000,0.65932162,118750.0,118740.0,0.2054343]
[1754951807400,0.65932162,118750.0,118740.0,0.51203263]
[1754951808211,0.66337162,118750.0,118740.0,0.51203263]
[1754951808709,0.21835942,118750.0,118740.0,0.51203263]
[1754951809009,0.60383942,118750.0,118740.0,0.51203263]
[1754951809706,0.60383942,118750.0,118740.0,0.2054343]
[1754951813107,0.51083942,118750.0,118740.0,0.51203263]
[1754951813308,0.57531942,118750.0,118740.0,0.51203263]
[1754951814208,0.57531942,118750.0,118740.0,0.2054343]
[1754951814403,0.57531942,118750.0,118740.0,0.51203263]
[1754951815211,0.57936942,118750.0,118740.0,0.51203263]
[1754951815710,0.57936942,118750.0,118740.0,0.2054343]
[1754951815913,0.57936942,118750.0,118740.0,0.51203263]
[1754951816109,0.60404942,118750.0,118740.0,0.51203263]
[1754951818012,0.57936942,118750.0,118740.0,0.51203263]
[1754951818407,0.56273942,118750.0,118740.0,0.47153263]
[1754951818616,0.57936942,118750.0,118740.0,0.51024263]
[1754951819114,0.57278942,118750.0,118740.0,0.51024263]
[1754951819910,0.21198942,118750.0,118740.0,0.51024263]
[1754951820216,0.21451942,118750.0,118740.0,0.51024263]
[1754951821215,0.06583152,118750.0,118740.0,0.51024263]
[1754951821621,0.06583152,118750.0,118740.0,0.87104263]
[1754951822118,0.06583152,118750.0,118740.0,0.51024263]
[1754951822307,0.15003872,118750.0,118740.0,0.51024263]
[1754951822919,0.06583152,118750.0,118740.0,0.51024263]
[1754951823119,0.15003872,118750.0,118740.0,0.51024263]
[1754951823421,0.06583152,118750.0,118740.0,0.51024263]
[1754951823617,0.15003872,118750.0,118740.0,0.51024263]
[1754951824126,0.24324872,118750.0,118740.0,1.29220263]
[1754951824716,0.54984705,118750.0,118740.0,0.2036443]
[1754951824917,0.24324872,118750.0,118740.0,0.9856043]
[1754951825112,0.24324872,118750.0,118740.0,0.2036443]
[1754951825317,0.24324872,118750.0,118740.0,0.9856043]
[1754951825822,0.21856872,118750.0,118740.0,1.29320263]
[1754951826024,0.15003872,118750.0,118740.0,1.29420263]
[1754951827519,0.06583152,118750.0,118740.0,1.29420263]
[1754951827719,0.06583152,118750.0,118740.0,1.65500263]
[1754951827916,0.01888983,118770.0,118760.0,0.0842001]
[1754951828117,0.08716277,118770.0,118760.0,1.29465843]
[1754951828316,0.01888983,118770.0,118760.0,1.29465843]
[1754951828516,0.10308283,118770.0,118760.0,1.29465843]
[1754951828717,0.01888983,118770.0,118760.0,1.29465843]
[1754951829428,0.6133712,118780.0,118760.0,1.47994908]
[1754951829620,0.6390912,118780.0,118770.0,0.154353]
[1754951829824,0.7066812,118780.0,118770.0,0.201333]
[1754951830525,0.6224898,118780.0,118770.0,0.201333]
[1754951831227,0.538299,118780.0,118770.0,0.201333]
[1754951832125,0.539299,118780.0,118770.0,0.201333]
[1754951832725,0.60564706,118780.0,118770.0,0.201333]
[1754951833833,0.60564706,118780.0,118770.0,0.20795942]
[1754951835431,0.49424806,118780.0,118770.0,0.51455775]
[1754951835931,0.49677806,118780.0,118770.0,0.51455775]
[1754951836130,0.58096396,118780.0,118770.0,0.20795942]
[1754951836329,0.58096396,118780.0,118770.0,0.51455775]
[1754951838528,0.58096396,118780.0,118770.0,0.20795942]
[1754951838720,0.58096396,118780.0,118770.0,0.51455775]
[1754951839537,0.58096396,118780.0,118770.0,0.20795942]
[1754951839734,0.60371396,118780.0,118770.0,0.51455775]
[1754951840434,0.60371396,118780.0,118770.0,0.20795942]
[1754951840631,0.60371396,118780.0,118770.0,0.51455775]
[1754951841534,0.60371396,118780.0,118770.0,0.99303942]
[1754951842425,0.62254996,118780.0,118760.0,0.04136475]
[1754951842625,0.79996133,118770.0,118760.0,0.01699475]
[1754951842827,0.84273133,118770.0,118760.0,0.01699475]
[1754951843032,0.536133,118770.0,118760.0,0.01699475]
[1754951843227,0.536133,118770.0,118760.0,0.0479588]
[1754951843228,0.84273133,118770.0,118760.0,0.0479588]
[1754951843435,0.84273133,118770.0,118760.0,0.07588475]
[1754951843634,0.84273133,118770.0,118760.0,0.10671361]
[1754951844035,0.536133,118770.0,118760.0,0.14375361]
[1754951844333,0.536133,118770.0,118760.0,0.22795371]
[1754951844529,0.84273133,118770.0,118760.0,0.13704475]
[1754951844733,0.536133,118770.0,118760.0,0.13704475]
[1754951845128,0.536133,118770.0,118760.0,0.22124485]
[1754951846531,0.536133,118770.0,118760.0,0.22800072]
[1754951846837,0.536133,118770.0,118760.0,0.14380062]
[1754951847135,0.536133,118770.0,118760.0,0.13704475]
[1754951847437,0.84273133,118770.0,118760.0,0.13704475]
[1754951847731,0.84273133,118770.0,118760.0,0.22124485]
[1754951848333,0.84273133,118770.0,118760.0,0.20554485]
[1754951848532,0.536133,118770.0,118760.0,0.20554485]
[1754951848734,0.676033,118770.0,118760.0,0.12134475]
[1754951848936,0.676033,118770.0,118760.0,0.21232691]
[1754951849236,0.676033,118770.0,118760.0,0.22802691]
[1754951849934,0.315233,118770.0,118760.0,0.53462524]
[1754951850139,0.676033,118770.0,118760.0,0.53462524]
[1754951850333,0.315233,118770.0,118760.0,0.53462524]
[1754951850633,0.676033,118770.0,118760.0,0.53462524]
[1754951851030,0.37639,118770.0,118760.0,0.53462524]
[1754951851236,0.72320983,118780.0,118770.0,0.084193]
[1754951851437,0.79125983,118780.0,118770.0,1.29428133]
[1754951851626,0.70706773,118780.0,118770.0,1.29428133]
[1754951852039,0.70706773,118780.0,118770.0,1.27858133]
[1754951852338,0.70706773,118780.0,118770.0,0.971983]
[1754951852540,0.70806773,118780.0,118770.0,0.987683]
[1754951856240,0.62387573,118780.0,118770.0,0.987683]
[1754951857738,0.57895573,118780.0,118770.0,0.987683]
[1754951857940,0.60112573,118780.0,118770.0,0.938523]
[1754951858244,0.62387573,118780.0,118770.0,0.987683]
[1754951858841,0.61238383,118780.0,118770.0,0.987683]
[1754951859032,0.63800383,118780.0,118770.0,1.29428133]
[1754951859545,0.72218973,118780.0,118770.0,0.987683]
[1754951859748,0.72218973,118780.0,118770.0,1.29428133]
[1754951861047,0.74493973,118780.0,118770.0,1.29428133]
[1754951861343,0.74493973,118780.0,118770.0,0.987683]
[1754951862745,0.63800383,118780.0,118770.0,0.987683]
[1754951863345,0.72218973,118780.0,118770.0,0.987683]
[1754951863544,0.74493973,118780.0,118770.0,0.987683]
[1754951863844,0.72218973,118780.0,118770.0,1.29428133]
[1754951864239,0.63800383,118780.0,118770.0,1.29428133]
[1754951864841,0.72218973,118780.0,118770.0,1.29428133]
[1754951865042,0.74493973,118780.0,118770.0,1.29428133]
[1754951866444,0.74493973,118780.0,118770.0,0.987683]
[1754951866646,0.74493973,118780.0,118770.0,1.29428133]
[1754951867447,0.74493973,118780.0,118770.0,0.987683]
[1754951869948,1.05153806,118780.0,118770.0,0.85293]
[1754951870151,1.05153806,118780.0,118770.0,0.9004]
[1754951870451,1.05153806,118780.0,118770.0,0.984593]
[1754951870651,1.05153806,118780.0,118770.0,0.9004]
[1754951870952,1.05153806,118780.0,118770.0,0.83723]
[1754951871149,1.05153806,118780.0,118770.0,0.968893]
[1754951871357,1.05153806,118780.0,118770.0,0.985243]
[1754951872343,0.74493973,118780.0,118770.0,0.985243]
[1754951875750,0.72218973,118780.0,118770.0,1.29184133]
[1754951875950,0.72218973,118780.0,118770.0,0.985243]
[1754951876650,0.72218973,118780.0,118770.0,1.29184133]
[1754951877556,0.72218973,118780.0,118770.0,0.985243]
[1754951878550,0.58228973,118780.0,118770.0,0.985243]
[1754951879152,0.60554973,118780.0,118770.0,0.985243]
[1754951880761,0.58228973,118780.0,118770.0,0.985243]
[1754951881054,0.51389973,118780.0,118770.0,0.985243]
[1754951881360,0.51389973,118780.0,118770.0,1.29184133]
[1754951881663,0.53698973,118780.0,118770.0,1.29184133]
[1754951881968,0.55336973,118780.0,118770.0,1.29184133]
[1754951882160,0.55589973,118780.0,118770.0,1.29184133]
[1754951882555,0.42971383,118780.0,118770.0,1.29184133]
[1754951882761,0.42824806,118780.0,118770.0,1.29184133]
[1754951883663,0.51243396,118780.0,118770.0,1.29184133]
[1754951884164,0.06744806,118780.0,118770.0,1.29184133]
[1754951884754,0.15163396,118780.0,118770.0,1.29184133]
[1754951886865,0.15163396,118780.0,118770.0,0.203203]
[1754951887060,0.24262396,118780.0,118770.0,0.985123]
[1754951887260,0.58016396,118780.0,118770.0,0.985123]
[1754951888165,0.21278396,118780.0,118770.0,1.29172133]
[1754951888463,0.16801396,118780.0,118770.0,1.29172133]
[1754951888665,0.15163396,118780.0,118770.0,1.29172133]
[1754951889269,0.06744806,118780.0,118770.0,1.29172133]
[1754951889476,0.06744806,118780.0,118770.0,1.65252133]
[1754951889662,0.06744806,118780.0,118770.0,0.985123]
[1754951889862,0.06744806,118780.0,118770.0,1.29172133]
[1754951890463,0.06744806,118780.0,118770.0,1.65252133]
[1754951891872,0.06744806,118780.0,118770.0,1.345923]
[1754951892078,0.06744806,118780.0,118770.0,1.65252133]
[1754951892973,0.15163406,118780.0,118770.0,1.65252133]
[1754951893566,0.15163406,118780.0,118770.0,1.29172133]
[1754951893872,0.51243406,118780.0,118770.0,1.29172133]
[1754951894470,0.55190406,118780.0,118770.0,1.29172133]
[1754951894774,0.19110406,118780.0,118770.0,1.29172133]
[1754951894972,0.58016406,118780.0,118770.0,0.985083]
[1754951896667,0.55049406,118780.0,118770.0,0.203203]
[1754951896868,0.91002239,118780.0,118770.0,0.985043]
[1754951899670,0.60342406,118780.0,118770.0,0.985043]
[1754951900070,0.60342406,118780.0,118770.0,0.85338]
[1754951900267,0.93042406,118780.0,118770.0,0.79132]
[1754951900474,0.93042406,118780.0,118770.0,0.9843531]
[1754951901372,0.62382573,118780.0,118770.0,0.9843531]
[1754951901571,0.93042406,118780.0,118770.0,0.9843531]
[1754951904380,0.62382573,118780.0,118770.0,0.9843531]
[1754951904678,0.93042406,118780.0,118770.0,0.9843531]
[1754951905171,0.62382573,118780.0,118770.0,0.9843531]
[1754951906376,0.93042406,118780.0,118770.0,0.9843531]
[1754951907080,0.62382573,118780.0,118770.0,0.9843531]
[1754951907687,0.62382573,118780.0,118770.0,0.90016]
[1754951908580,0.76362573,118780.0,118770.0,0.90016]
[1754951909381,0.76362573,118780.0,118770.0,0.9843531]
[1754951909579,1.07022406,118780.0,118770.0,0.9843531]
[1754951909979,0.76362573,118780.0,118770.0,0.9843531]
[1754951910384,0.74036573,118780.0,118770.0,0.9843531]
[1754951910585,0.76535573,118780.0,118770.0,0.90016]
[1754951910788,0.76535573,118780.0,118770.0,0.9843531]
[1754951910983,0.74036573,118780.0,118770.0,0.9843531]
[1754951911178,0.74036573,118780.0,118770.0,1.29095143]
[1754951913683,0.17203573,118780.0,118770.0,1.29095143]
[1754951913988,0.08638403,118780.0,118770.0,1.29095143]
[1754951915284,0.17057003,118780.0,118770.0,1.29095143]
[1754951918591,0.31037003,118780.0,118770.0,1.29095143]
[1754951918794,0.17057003,118780.0,118770.0,1.29095143]
[1754951918989,0.17057003,118780.0,118770.0,0.2025131]
[1754951919195,0.53137003,118780.0,118770.0,0.9842731]
[1754951919504,0.62443003,118780.0,118770.0,0.9842731]
[1754951919697,0.53137003,118780.0,118770.0,0.2025131]
[1754951919994,0.53137003,118780.0,118770.0,1.29083143]
[1754951920294,0.55446003,118780.0,118770.0,1.29083143]
[1754951921187,0.57093003,118780.0,118770.0,0.9842331]
[1754951921995,0.57346003,118780.0,118770.0,0.9842331]
[1754951923499,0.59944003,118780.0,118770.0,0.2025131]
[1754951923688,0.59944003,118780.0,118770.0,0.9842331]
[1754951926092,0.59944003,118780.0,118770.0,1.29083143]
[1754951926300,0.59539003,118780.0,118770.0,1.29083143]
[1754951926597,0.57093003,118780.0,118770.0,1.29083143]
[1754951927296,0.06744806,118780.0,118770.0,1.29083143]
[1754951927695,0.3608,118790.0,118770.0,1.45921273]
[1754951927898,0.3608,118790.0,118780.0,0.46185423]
[1754951928089,0.3608,118790.0,118780.0,0.50877423]
[1754951928490,0.65532686,118800.0,118780.0,0.76132723]
[1754951928700,0.65532686,118800.0,118790.0,1.24412713]
[1754951928900,0.65542686,118800.0,118790.0,1.24412713]
[1754951929198,0.29462686,118800.0,118790.0,1.24412713]
[1754951929999,0.65542686,118800.0,118790.0,1.24412713]
[1754951930186,0.67121686,118800.0,118790.0,1.24412713]
[1754951931490,0.67374686,118800.0,118790.0,1.24412713]
[1754951931687,0.74093879,118800.0,118790.0,1.24412713]
[1754951932999,0.69952879,118800.0,118790.0,1.24412713]
[1754951935396,0.33872879,118800.0,118790.0,1.24412713]
[1754951935598,0.17037379,118800.0,118790.0,1.24412713]
[1754951936703,0.17037379,118800.0,118790.0,1.60492713]
[1754951937700,0.15146363,118800.0,118790.0,1.62197772]
[1754951938095,0.15146363,118800.0,118790.0,1.26117772]
[1754951938290,0.15146363,118800.0,118790.0,1.62197772]
[1754951942301,0.15146363,118800.0,118790.0,1.26117772]
[1754951944604,0.51226363,118800.0,118790.0,0.95457939]
[1754951944807,0.17565363,118800.0,118790.0,1.30728772]
[1754951944999,0.53645363,118800.0,118790.0,1.30728772]
[1754951945199,0.55224363,118800.0,118790.0,1.30728772]
[1754951946610,0.19144363,118800.0,118790.0,1.30728772]
[1754951947012,0.55224363,118800.0,118790.0,0.21904939]
[1754951947311,0.57593363,118800.0,118790.0,1.30696772]
[1754951949007,0.57745363,118800.0,118790.0,1.00036939]
[1754951949204,0.60490363,118800.0,118790.0,1.00036939]
[1754951950907,0.60490363,118800.0,118790.0,1.30696772]
[1754951951408,0.60490363,118800.0,118790.0,0.52564772]
[1754951951614,0.60490363,118800.0,118790.0,1.30688772]
[1754951951913,0.57998363,118800.0,118790.0,1.30688772]
[1754951954112,0.91150196,118800.0,118790.0,0.0322]
[1754951954316,0.91150196,118800.0,118790.0,0.9831988]
[1754951954510,0.91150196,118800.0,118790.0,0.89902]
[1754951954708,0.91296741,118800.0,118790.0,0.89902]
[1754951954915,0.91296741,118800.0,118790.0,0.79056]
[1754951955115,0.91296741,118800.0,118790.0,0.80404]
[1754951955817,0.60636908,118800.0,118790.0,0.80404]
[1754951956116,0.91296741,118800.0,118790.0,0.9620585]
[1754951956306,0.91296741,118800.0,118790.0,0.9831985]
[1754951957419,0.91296741,118800.0,118790.0,0.89902]
[1754951959316,0.60636908,118800.0,118790.0,0.9831985]
[1754951959619,0.91296741,118800.0,118790.0,0.9831985]
[1754951961814,0.91296741,118800.0,118790.0,0.89902]
[1754951962221,0.91296741,118800.0,118790.0,0.9831985]
[1754951962613,0.60636908,118800.0,118790.0,0.9831985]
[1754951963014,0.91296741,118800.0,118790.0,0.9831985]
[1754951964719,0.91296741,118800.0,118790.0,0.89902]
[1754951966922,0.60636908,118800.0,118790.0,0.89902]
[1754951967222,0.91296741,118800.0,118790.0,0.89902]
[1754951967624,0.91296741,118800.0,118790.0,0.9831985]
[1754951970228,0.91296741,118800.0,118790.0,0.89902]
[1754951971028,0.60636908,118800.0,118790.0,0.89902]
[1754951971322,0.91296741,118800.0,118790.0,0.89902]
[1754951971521,0.91296741,118800.0,118790.0,0.9831985]
[1754951972227,0.15292908,118800.0,118790.0,0.9831985]
[1754951972528,0.15292908,118800.0,118790.0,1.28979683]
[1754951972727,0.51372908,118800.0,118790.0,1.28979683]
[1754951973228,0.51372908,118800.0,118790.0,0.9831985]
[1754951974532,0.15292908,118800.0,118790.0,0.9831985]
[1754951974929,0.51372908,118800.0,118790.0,0.9831985]
[1754951975627,0.53791908,118800.0,118790.0,0.9831985]
[1754951975828,0.55678908,118800.0,118790.0,0.9831985]
[1754951976028,0.88506741,118800.0,118790.0,0.9829985]
[1754951976225,0.88911741,118800.0,118790.0,0.06895]
[1754951976527,0.60645908,118800.0,118790.0,0.89789]
[1754951976731,0.91305741,118800.0,118790.0,0.89789]
[1754951977332,0.91305741,118800.0,118790.0,0.9820685]
[1754951978730,0.91305741,118800.0,118790.0,0.89789]
[1754951979835,0.91305741,118800.0,118790.0,0.89785]
[1754951980138,0.91305741,118800.0,118790.0,0.9820284]
[1754951980438,0.60645908,118800.0,118790.0,0.9820284]
[1754951980739,0.91305741,118800.0,118790.0,0.9820284]
[1754951981841,0.91305741,118800.0,118790.0,0.89785]
[1754951983838,1.05285741,118800.0,118790.0,0.89785]
[1754951985740,0.97646741,118800.0,118790.0,0.89785]
[1754951985942,0.97646741,118800.0,118790.0,0.9820284]
[1754951986133,1.02891741,118800.0,118790.0,0.9820284]
[1754951988033,1.05285741,118800.0,118790.0,0.89785]
[1754951988445,1.05285741,118800.0,118790.0,0.9820284]
[1754951989447,1.05285741,118800.0,118790.0,0.89785]
[1754951990437,1.05285741,118800.0,118790.0,0.89769]
[1754951990742,0.0841855,118780.0,118770.0,0.1683788]
[1754951990942,0.79298383,118780.0,118770.0,0.9976188]
[1754951991138,0.5131055,118780.0,118770.0,0.9976188]
[1754951991333,0.5131055,118780.0,118770.0,0.2866088]
[1754951991548,0.5131055,118780.0,118770.0,1.0674088]
[1754951992245,0.5131055,118780.0,118770.0,1.0694088]
[1754951992847,0.5131055,118780.0,118770.0,0.2886088]
[1754951993037,0.5131055,118780.0,118770.0,1.0694088]
[1754951993238,0.5131055,118780.0,118770.0,1.0704088]
[1754951993944,0.6529055,118780.0,118770.0,1.0704088]
[1754951994338,0.6529055,118780.0,118770.0,1.0694088]
[1754951995041,0.6529055,118780.0,118770.0,1.0684088]
[1754951995242,0.6006055,118780.0,118770.0,1.0684088]
[1754951995442,0.5848855,118780.0,118770.0,1.0684088]
[1754951995640,0.6090755,118780.0,118770.0,1.0684088]
[1754951995841,0.6247955,118780.0,118770.0,1.0684088]
[1754951996048,0.6273255,118780.0,118770.0,1.0684088]
[1754951996639,0.6247955,118780.0,118770.0,1.0684088]
[1754951997041,0.6529055,118780.0,118770.0,1.0684088]
[1754951999249,0.6767455,118780.0,118770.0,1.0684088]
[1754952000245,0.6529055,118780.0,118770.0,0.2876088]
[1754952000451,0.98334383,118780.0,118770.0,0.11923]
[1754952000651,0.98334383,118780.0,118770.0,0.89991]
[1754952000848,0.98334383,118780.0,118770.0,0.11923]
[1754952001046,2.12482383,118780.0,118770.0,0.05133]
[1754952001248,2.12482383,118780.0,118770.0,0.1647226]
[1754952001552,1.34414383,118780.0,118770.0,0.11923]
[1754952002852,1.34414383,118780.0,118770.0,0.2034226]
[1754952003352,1.34414383,118780.0,118770.0,0.11923]
[1754952007744,1.34414383,118780.0,118770.0,0.02504]
[1754952008148,1.34414383,118780.0,118770.0,0.001]
[1754952008149,1.0375455,118780.0,118770.0,0.001]
[1754952008348,0.0841926,118770.0,118760.0,0.0001]
[1754952008648,0.86207689,118770.0,118760.0,0.0001]
[1754952008953,0.86207689,118770.0,118760.0,0.02414]
[1754952009354,0.86207689,118770.0,118760.0,0.03388]
[1754952009654,1.64267689,118770.0,118760.0,0.03388]
[1754952010051,1.64267689,118770.0,118740.0,0.08712026]
[1754952010052,0.0842068,118750.0,118740.0,0.08712026]
[1754952010251,0.084221,118730.0,118720.0,0.3224663]
[1754952010452,0.84347933,118730.0,118720.0,1.1274263]
[1754952010852,0.536881,118730.0,118720.0,1.13513428]
[1754952011158,0.513041,118730.0,118720.0,1.15917428]
[1754952011356,0.513141,118730.0,118720.0,1.15927428]
[1754952011758,0.58084415,118730.0,118720.0,1.15927428]
[1754952012058,0.58084415,118730.0,118720.0,1.16227428]
[1754952012460,0.58084415,118730.0,118720.0,1.1585663]
[1754952013148,0.60468415,118730.0,118720.0,0.9901173]
[1754952013350,0.60468415,118730.0,118720.0,0.07958]
[1754952013351,0.91128248,118730.0,118720.0,0.07958]
[1754952013552,0.91128248,118730.0,118720.0,0.90197]
[1754952013948,0.91128248,118730.0,118720.0,0.00984]
[1754952014162,0.91128248,118730.0,118720.0,0.0001]
[1754952014454,0.91128248,118730.0,118720.0,0.07963]
[1754952014655,0.91128248,118730.0,118720.0,0.2025575]
[1754952015052,0.60468415,118730.0,118720.0,0.2025575]
[1754952015551,0.91128248,118730.0,118720.0,0.2025575]
[1754952016151,0.60468415,118730.0,118720.0,0.11833]
[1754952016356,0.0842277,118720.0,118710.0,0.06979]
[1754952016661,0.84348603,118720.0,118710.0,0.2024648]
[1754952017158,0.5368877,118720.0,118710.0,0.2024648]
[1754952017954,0.5368877,118720.0,118710.0,0.2034648]
[1754952018157,0.5369877,118720.0,118710.0,0.2035648]
[1754952018457,0.1761877,118720.0,118710.0,0.2035648]
[1754952018665,0.5369877,118720.0,118710.0,0.2035648]
[1754952018959,0.1761877,118720.0,118710.0,0.2045648]
[1754952019265,0.1761877,118720.0,118710.0,0.51116313]
[1754952019266,0.0843269,118720.0,118710.0,0.51116313]
[1754952019963,0.1085169,118720.0,118710.0,0.51116313]
[1754952022467,0.0001,118720.0,118710.0,0.51116313]
[1754952023364,0.06770315,118730.0,118710.0,1.04032773]
[1754952023557,0.10110426,118740.0,118720.0,1.77332563]
[1754952023764,0.01688976,118740.0,118730.0,0.86945853]
[1754952023966,0.10110296,118740.0,118730.0,0.50865853]
[1754952025162,0.16990523,118740.0,118730.0,0.50865853]
[1754952025366,0.17000523,118740.0,118730.0,0.50875853]
[1754952025565,0.08579203,118740.0,118730.0,0.86955853]
[1754952026063,0.17000513,118740.0,118730.0,0.50875853]
[1754952026259,0.17000513,118740.0,118730.0,0.2021602]
[1754952026455,0.17000513,118740.0,118730.0,0.50875853]
[1754952026662,0.59920513,118740.0,118730.0,0.2021602]
[1754952026967,0.23840513,118740.0,118730.0,0.2021602]
[1754952027270,0.23840513,118740.0,118730.0,0.2031602]
[1754952027478,0.23840513,118740.0,118730.0,0.2041602]
[1754952029272,0.59920513,118740.0,118730.0,0.2041602]
[1754952029572,0.90580346,118740.0,118730.0,0.2041602]
[1754952029771,0.92930346,118740.0,118730.0,0.2041602]
[1754952030075,0.92930346,118740.0,118730.0,0.9013]
[1754952030276,0.92930346,118740.0,118730.0,0.9855202]
[1754952030570,0.92930346,118740.0,118730.0,0.1113902]
[1754952030869,0.92930346,118740.0,118730.0,0.2041602]
[1754952031072,0.92930346,118740.0,118730.0,0.2021602]
[1754952031861,0.92930346,118740.0,118730.0,0.11794]
[1754952032265,0.92930346,118740.0,118730.0,0.2021602]
[1754952034668,0.92930346,118740.0,118730.0,0.11794]
[1754952035368,0.92930346,118740.0,118730.0,0.0001]
[1754952035573,0.92930346,118740.0,118730.0,0.02423]
[1754952035874,0.62270513,118740.0,118730.0,0.1084502]
[1754952036068,0.92930346,118740.0,118730.0,0.1183402]
[1754952036275,0.92930346,118740.0,118730.0,0.2021602]
[1754952038477,1.06910346,118740.0,118730.0,0.2021602]
[1754952039980,1.0522137,118740.0,118730.0,0.2021602]
[1754952044184,0.74561537,118740.0,118730.0,0.2021602]
[1754952045884,0.74561537,118740.0,118730.0,0.11794]
[1754952046083,1.0522137,118740.0,118730.0,0.0493]
[1754952046381,1.0522137,118740.0,118730.0,0.1335202]
[1754952047084,1.0522137,118740.0,118730.0,0.0493]
[1754952047273,1.0522137,118740.0,118730.0,0.03412]
[1754952047474,0.74561537,118740.0,118730.0,0.03412]
[1754952047779,1.0522137,118740.0,118730.0,0.03412]
[1754952048380,0.0842273,118720.0,118710.0,0.29524744]
[1754952048577,0.84352563,118720.0,118710.0,1.15412744]
[1754952048882,0.84352563,118720.0,118710.0,1.16875744]
[1754952049384,0.5369273,118720.0,118710.0,1.16875744]
[1754952049582,0.5370273,118720.0,118710.0,1.16985744]
[1754952049770,0.84362563,118720.0,118710.0,1.16985744]
[1754952050172,0.5370273,118720.0,118710.0,1.16985744]
[1754952050371,0.5370273,118720.0,118710.0,1.17085744]
[1754952050985,0.84362563,118720.0,118710.0,1.17085744]
[1754952051688,0.84496563,118720.0,118710.0,0.1091644]
[1754952051996,1.20576563,118720.0,118710.0,0.1568444]
[1754952053278,1.20576563,118720.0,118710.0,0.07261]
[1754952053474,1.20586563,118720.0,118710.0,0.1569444]
[1754952053677,1.20586563,118720.0,118710.0,0.1885144]
[1754952053883,1.20586563,118720.0,118710.0,0.2031444]
[1754952054376,1.20586563,118720.0,118710.0,0.0001]
[1754952054577,1.20586563,118720.0,118710.0,0.0843344]
[1754952054776,1.20586563,118720.0,118710.0,0.1092644]
[1754952055186,0.8992673,118720.0,118710.0,0.1092644]
[1754952055373,1.20586563,118720.0,118710.0,0.1092644]
[1754952055579,1.20586563,118720.0,118710.0,0.02503]
[1754952055777,1.20586563,118720.0,118710.0,0.1092644]
[1754952055983,1.20586563,118720.0,118710.0,0.02503]
[1754952056689,1.20586563,118720.0,118710.0,0.1092644]
[1754952057082,1.20586563,118720.0,118710.0,0.02503]
[1754952057282,1.20586563,118720.0,118710.0,0.1092644]
[1754952057788,1.20586563,118720.0,118710.0,0.1574544]
[1754952058089,1.20586563,118720.0,118710.0,0.1673344]
[1754952058290,1.20586563,118720.0,118710.0,0.1885144]
[1754952059192,0.8992673,118720.0,118710.0,0.1885144]
[1754952059488,1.20586563,118720.0,118710.0,0.2031444]
[1754952059691,0.8992673,118720.0,118710.0,0.2031444]
[1754952059884,0.5135273,118720.0,118710.0,0.50974273]
[1754952060082,0.1527273,118720.0,118710.0,0.50974273]
[1754952061205,0.0001,118720.0,118710.0,0.50974273]
[1754952062593,0.69945629,118740.0,118730.0,0.0842202]
[1754952062894,0.70884629,118740.0,118730.0,1.29054853]
[1754952063093,0.78030629,118740.0,118730.0,1.29054853]
[1754952063298,0.59688839,118740.0,118730.0,1.29054853]
[1754952063591,0.53101839,118740.0,118730.0,1.29054853]